bitfinex/quotes_SOLUSD_20251204
["timestamp","ask_amount","ask_price","bid_price","bid_amount"]
[1764855482400,0.72,142.48,142.44,16.308864]
[1764855482623,0.72,142.48,142.39,119.3288418]
[1764855482624,4.13784122,142.45,142.4,68.17106808]
[1764855482920,4.13784122,142.45,142.37,0.7]
[1764855482921,11.15932696,142.42,142.37,0.7]
[1764855483204,7.02113532,142.43,142.39,4.13784122]
[1764855483382,7.02113532,142.43,142.38,0.7]
[1764855483579,11.89784122,142.45,142.4,4.13784122]
[1764855484107,8.48,142.45,142.41,4.83784122]
[1764855484478,4.85784122,142.44,142.39,20.44670522]
[1764855484678,0.72,142.44,142.4,0.7]
[1764855484878,0.72,142.44,142.4,11.86003487]
[1764855485606,0.72,142.44,142.41,0.7]
[1764855486010,11.87838966,142.44,142.4,7.72219365]
[1764855486316,11.87838966,142.44,142.4,0.7]
[1764855486493,0.72,142.43,142.4,0.7]
[1764855487186,0.72,142.43,142.39,7.02280237]
[1764855487397,0.72,142.43,142.39,11.86064359]
[1764855487803,0.72,142.43,142.39,0.7]
[1764855487804,7.02148574,142.42,142.39,0.7]
[1764855488008,7.02148574,142.42,142.39,7.72294179]
[1764855488212,7.02110123,142.43,142.39,11.86078301]
[1764855488522,11.87853571,142.44,142.4,0.7]
[1764855489623,0.72,142.43,142.4,0.7]
[1764855490102,11.15853571,142.44,142.4,7.72241344]
[1764855490425,7.01959239,142.46,142.41,4.13784122]
[1764855490595,7.01959239,142.46,142.41,4.83784122]
[1764855490596,11.87743361,142.46,142.41,4.83784122]
[1764855490792,7.01959239,142.46,142.42,0.7]
[1764855491018,5.82956749,142.52,142.44,4.13784122]
[1764855491019,17.54417272,142.5,142.44,4.13784122]
[1764855491192,4.13784122,142.48,142.43,4.13784122]
[1764855491387,0.72,142.47,142.43,11.15861469]
[1764855491694,0.72,142.47,142.42,7.76]
[1764855491695,11.87686276,142.47,142.42,19.61928842]
[1764855492106,4.85784122,142.46,142.42,15.4814472]
[1764855492310,4.85784122,142.46,142.42,8.46]
[1764855492488,0.72,142.45,142.42,8.46]
[1764855492686,0.72,142.45,142.42,15.48147746]
[1764855493297,0.72,142.45,142.42,7.76]
[1764855493494,4.13784122,142.44,142.4,8.46]
[1764855493917,0.72,142.43,142.4,8.46]
[1764855494302,0.72,142.43,142.4,0.7]
[1764855494818,11.15870357,142.44,142.4,7.72229701]
[1764855495022,7.74086235,142.44,142.4,11.86013823]
[1764855495203,0.72,142.44,142.41,0.7]
[1764855495513,14.77972548,142.46,142.42,4.13784122]
[1764855495698,14.77972548,142.46,142.41,0.7]
[1764855495699,0.72,142.48,142.44,4.13784122]
[1764855495900,7.73862987,142.48,142.44,4.13784122]
[1764855496114,7.73862987,142.48,142.44,4.83784122]
[1764855496495,19.63557372,142.5,142.45,4.83784122]
[1764855496719,15.4977325,142.5,142.46,7.01951424]
[1764855496894,4.85784122,142.49,142.45,7.71989801]
[1764855497101,4.85784122,142.49,142.44,4.13784122]
[1764855497313,0.72,142.48,142.44,4.83784122]
[1764855498501,37.17943336,142.5,142.45,4.83784122]
[1764855499025,0.72,142.49,142.45,4.83784122]
[1764855499605,11.8762609,142.49,142.45,7.71993332]
[1764855500932,11.1562609,142.49,142.45,7.71993332]
[1764855501229,11.8762609,142.49,142.45,7.71993332]
[1764855501599,11.1562609,142.49,142.45,7.71993332]
[1764855501820,0.72,142.48,142.45,7.71993332]
[1764855502326,0.72,142.48,142.45,7.01993332]
[1764855502530,7.73868097,142.48,142.44,11.85811999]
[1764855503026,7.01817724,142.49,142.45,7.71991853]
[1764855503214,7.01817724,142.49,142.45,11.85775975]
[1764855503414,7.73817724,142.49,142.46,0.7]
[1764855503621,7.73817724,142.49,142.45,11.85775975]
[1764855503826,14.77755434,142.5,142.46,4.83784122]
[1764855504022,14.7775709,142.5,142.47,4.13784122]
[1764855504218,0.72,142.49,142.45,11.15775975]
[1764855504402,0.72,142.49,142.46,0.7]
[1764855505319,7.73822644,142.49,142.45,4.13784122]
[1764855505513,11.87606766,142.49,142.45,0.7]
[1764855505713,11.87606766,142.49,142.45,7.71985657]
[1764855506006,0.72,142.48,142.45,7.71985657]
[1764855507446,7.01822644,142.49,142.45,7.71985657]
[1764855507651,7.73822644,142.49,142.45,11.85769779]
[1764855508306,7.73855485,142.48,142.44,73.4583379]
[1764855508614,11.87639607,142.48,142.43,4.83784122]
[1764855508839,0.72,142.47,142.43,11.85848209]
[1764855509006,0.72,142.47,142.44,7.72044326]
[1764855509206,17.5455907,142.49,142.45,7.01989706]
[1764855509207,7.73825377,142.49,142.45,7.01989706]
[1764855509438,0.72,142.48,142.45,7.71989706]
[1764855509738,0.72,142.48,142.45,7.01989706]
[1764855510710,0.72,142.48,142.45,7.71989706]
[1764855512443,7.73858848,142.48,142.45,7.01989706]
[1764855512647,7.73858848,142.48,142.44,11.15830459]
[1764855512939,0.72,142.47,142.44,11.85830459]
[1764855514216,7.73903334,142.47,142.43,4.13784122]
[1764855514417,7.73903334,142.47,142.43,11.15882792]
[1764855514638,0.72,142.46,142.43,7.7209867]
[1764855514943,0.72,142.46,142.43,11.85882792]
[1764855516323,7.01903334,142.47,142.44,11.85824675]
[1764855516524,7.73903334,142.47,142.44,2.64930649]
[1764855516720,7.73903334,142.47,142.44,3.34930649]
[1764855517161,7.73903334,142.47,142.39,17.55664591]
[1764855517162,0.72,142.46,142.39,17.55664591]
[1764855517447,2.64930649,142.44,142.39,10.37205801]
[1764855517819,0.72,142.43,142.39,10.37205801]
[1764855518530,7.74102309,142.43,142.39,10.37205801]
[1764855518850,7.74102309,142.43,142.39,9.67205801]
[1764855519045,7.74102309,142.43,142.39,10.37205801]
[1764855519227,7.74102309,142.43,142.39,7.72275152]
[1764855519432,7.74102309,142.43,142.39,10.37205801]
[1764855519433,0.72,142.42,142.39,10.37205801]
[1764855520937,0.72,142.42,142.4,2.64930649]
[1764855521742,7.74148955,142.42,142.4,2.64930649]
[1764855521919,7.74148955,142.42,142.39,10.37205801]
[1764855522329,7.74148955,142.42,142.39,3.34930649]
[1764855522856,0.72,142.46,142.41,9.67079929]
[1764855523153,0.72,142.47,142.42,7.76]
[1764855523322,0.72,142.47,142.42,8.47]
[1764855523645,0.72,142.47,142.43,0.71]
[1764855523845,0.72,142.47,142.43,3.35930649]
[1764855524026,7.73924384,142.47,142.43,10.38014737]
[1764855524530,0.72,142.46,142.43,10.38014737]
[1764855525150,7.73870512,142.48,142.44,3.35930649]
[1764855525455,0.72,142.47,142.44,3.35930649]
[1764855525641,0.72,142.47,142.44,0.71]
[1764855527053,0.72,142.47,142.44,10.37973623]
[1764855528534,7.73944558,142.47,142.43,2.64930649]
[1764855528935,0.72,142.46,142.43,3.35930649]
[1764855529252,7.01944558,142.47,142.44,10.37978364]
[1764855529557,7.73944558,142.47,142.44,10.37978364]
[1764855530766,0.72,142.46,142.43,2.64930649]
[1764855530972,3.36930649,142.46,142.42,2.64930649]
[1764855531137,0.72,142.46,142.42,2.64930649]
[1764855531451,0.72,142.45,142.42,3.35930649]
[1764855532954,7.01995338,142.46,142.42,3.35930649]
[1764855533255,7.73995338,142.46,142.43,2.64930649]
[1764855533451,0.72,142.45,142.43,2.64930649]
[1764855534644,7.01995338,142.46,142.43,2.64930649]
[1764855534847,7.01995338,142.46,142.44,2.64930649]
[1764855535043,7.01995338,142.46,142.43,3.35930649]
[1764855535360,7.0192271,142.47,142.44,2.64930649]
[1764855535558,7.7392271,142.47,142.44,10.37970993]
[1764855537243,7.7392271,142.47,142.44,7.73040344]
[1764855537450,7.7392271,142.47,142.44,10.37970993]
[1764855538058,7.0192271,142.47,142.44,2.64930649]
[1764855538235,0.72,142.46,142.42,2.64930649]
[1764855538433,0.72,142.46,142.42,3.35930649]
[1764855539055,0.72,142.46,142.42,2.64930649]
[1764855539255,0.72,142.46,142.41,63.01]
[1764855539256,0.72,142.46,142.43,2.64930649]
[1764855539441,0.72,142.46,142.43,3.35930649]
[1764855540182,24.56678097,142.47,142.43,3.35930649]
[1764855540183,7.0192271,142.47,142.43,10.38020684]
[1764855540467,14.7786426,142.48,142.45,2.64930649]
[1764855540672,0.72,142.47,142.44,3.35930649]
[1764855541639,7.73929053,142.47,142.44,3.35930649]
[1764855541937,7.73929053,142.47,142.44,10.3797329]
[1764855542138,7.76,142.48,142.46,2.64930649]
[1764855542440,7.73777387,142.5,142.47,2.64930649]
[1764855542658,7.01777387,142.5,142.47,2.64930649]
[1764855542863,7.01777387,142.5,142.47,3.35930649]
[1764855543048,7.73777387,142.5,142.47,2.64930649]
[1764855543467,7.73777387,142.5,142.47,3.35930649]
[1764855543670,7.73777387,142.5,142.47,2.64930649]
[1764855544371,7.73777387,142.5,142.47,3.35930649]
[1764855544756,7.73777387,142.5,142.47,0.71]
[1764855545974,7.73777387,142.5,142.46,10.37874933]
[1764855546147,7.73777387,142.5,142.46,9.66874933]
[1764855546468,7.73777387,142.5,142.47,0.71]
[1764855547466,7.73777387,142.5,142.46,10.37874933]
[1764855547677,7.73777387,142.5,142.47,3.35930649]
[1764855547853,17.54328409,142.51,142.48,2.64930649]
[1764855547854,7.01720608,142.51,142.48,2.64930649]
[1764855548057,0.72,142.51,142.48,3.35930649]
[1764855548663,7.73557457,142.54,142.5,2.64930649]
[1764855548848,2.64930649,142.52,142.47,3.35930649]
[1764855549052,2.64930649,142.52,142.47,8.47]
[1764855549248,0.72,142.51,142.47,11.11930649]
[1764855550277,10.38655185,142.51,142.46,10.40930649]
[1764855550452,27.92918043,142.51,142.46,18.13878431]
[1764855550651,0.72,142.5,142.47,0.71]
[1764855551594,0.72,142.5,142.47,3.35930649]
[1764855552656,7.73784669,142.5,142.47,3.35930649]
[1764855553768,0.69,142.5,142.47,0.66]
[1764855554276,0.69,142.5,142.45,7.6798862]
[1764855554479,3.33930649,142.5,142.45,10.32919269]
[1764855554971,0.69,142.49,142.45,10.32919269]
[1764855555878,7.70824031,142.49,142.45,10.32919269]
[1764855556569,0.69,142.48,142.43,7.68073129]
[1764855556876,3.33930649,142.48,142.44,7.02048041]
[1764855557176,7.01824031,142.49,142.46,2.64930649]
[1764855557478,7.70775291,142.5,142.47,2.64930649]
[1764855557881,0.69,142.49,142.46,7.01936807]
[1764855558070,7.7080873,142.49,142.46,7.01936807]
[1764855558255,7.7080873,142.49,142.46,7.67936807]
[1764855558457,7.01828398,142.49,142.45,9.66915352]
[1764855558659,0.69,142.48,142.45,10.32915352]
[1764855559677,7.01828398,142.49,142.45,9.66915352]
[1764855559979,0.69,142.49,142.46,10.32837663]
[1764855560355,27.95244212,142.51,142.48,2.64930649]
[1764855560356,7.76,142.51,142.48,2.64930649]
[1764855560557,0.69,142.52,142.49,2.64930649]
[1764855560761,7.70628872,142.53,142.49,2.64930649]
[1764855560974,0.69,142.52,142.49,2.64930649]
[1764855561173,0.69,142.52,142.46,24.56785576]
[1764855561174,0.69,142.52,142.46,7.01907014]
[1764855561498,3.33930649,142.52,142.47,11.06930649]
[1764855561977,3.33930649,142.52,142.46,7.01907014]
[1764855561978,10.35601829,142.52,142.48,10.32761953]
[1764855562362,0.69,142.51,142.48,10.32761953]
[1764855563282,7.7067118,142.52,142.48,10.32761953]
[1764855563586,0.69,142.52,142.48,10.32761953]
[1764855563981,7.01621951,142.53,142.49,3.30930649]
[1764855564371,7.01621951,142.53,142.5,0.66]
[1764855564566,17.53794006,142.55,142.52,2.64930649]
[1764855564567,7.01540098,142.55,142.52,2.64930649]
[1764855564774,0.69,142.54,142.52,2.64930649]
[1764855564977,0.69,142.54,142.51,2.64930649]
[1764855565686,0.69,142.54,142.51,9.66631782]
[1764855565887,0.69,142.54,142.51,10.32631782]
[1764855566091,0.69,142.54,142.52,2.64930649]
[1764855566268,7.01540098,142.55,142.52,2.64930649]
[1764855566471,7.70540098,142.55,142.52,2.64930649]
[1764855566869,0.69,142.58,142.54,2.64930649]
[1764855567188,35.05890322,142.62,142.57,2.64930649]
[1764855567189,0.69,142.6,142.57,2.64930649]
[1764855567491,0.69,142.59,142.56,2.64930649]
[1764855567668,7.70324296,142.59,142.55,9.6643408]
[1764855567868,7.70324296,142.59,142.55,10.3243408]
[1764855568188,0.89,142.61,142.57,2.64930649]
[1764855568568,0.69,142.6,142.57,2.64930649]
[1764855569167,0.69,142.6,142.56,7.67430823]
[1764855569365,0.69,142.6,142.57,2.64930649]
[1764855569890,7.70270722,142.6,142.56,9.66361472]
[1764855570094,2.64930649,142.58,142.53,2.64930649]
[1764855570300,7.90219116,142.61,142.57,2.64930649]
[1764855570597,0.89,142.61,142.58,2.64930649]
[1764855571171,0.2,142.61,142.59,0.66]
[1764855571374,0.2,142.61,142.6,2.64930649]
[1764855571795,0.2,142.61,142.6,3.30930649]
[1764855572776,0.2,142.61,142.6,0.66]
[1764855573172,0.2,142.61,142.6,7.67262272]
[1764855573994,0.2,142.61,142.6,7.01262272]
[1764855574504,0.2,142.61,142.6,7.67262272]
[1764855575400,0.2,142.61,142.57,0.66]
[1764855575700,7.21214406,142.61,142.57,17.42326655]
[1764855575901,0.2,142.61,142.6,25.97079321]
[1764855576202,0.2,142.61,142.6,34.39079321]
[1764855576590,0.2,142.61,142.6,43.20073813]
[1764855578407,0.2,142.61,142.6,44.67943157]
[1764855581780,0.2,142.61,142.6,7.01262272]
[1764855582184,0.2,142.61,142.6,23.32148672]
[1764855582410,0.9,142.61,142.58,7.01339238]
[1764855582707,4.12799993,142.59,142.54,18.21839085]
[1764855582910,4.81799993,142.6,142.55,7.76]
[1764855583114,7.21221748,142.61,142.56,7.01458531]
[1764855583115,0.2,142.61,142.56,7.01458531]
[1764855583297,0.2,142.61,142.57,4.12799993]
[1764855583495,0.2,142.61,142.58,7.76]
[1764855583697,0.89,142.61,142.59,7.01311452]
[1764855584185,4.81799993,142.6,142.58,14.77342277]
[1764855584386,4.81799993,142.6,142.58,7.01342277]
[1764855585088,0.69,142.6,142.58,7.01342277]
[1764855585310,0.69,142.59,142.57,7.01400034]
[1764855585811,0.2,142.61,142.57,28.67724611]
[1764855586002,0.2,142.61,142.58,0.68]
[1764855586206,0.89,142.61,142.57,28.67724611]
[1764855586513,0.89,142.61,142.57,29.35724611]
[1764855587210,0.89,142.61,142.57,25.22924618]
[1764855587401,0.69,142.6,142.57,24.54924618]
[1764855587800,0.69,142.6,142.57,29.35724611]
[1764855588110,0.2,142.61,142.58,0.68]
[1764855588416,0.2,142.61,142.6,4.12799993]
[1764855588717,0.2,142.61,142.6,4.80799993]
[1764855589303,0.2,142.61,142.6,0.68]
[1764855589488,0.2,142.61,142.58,67.10799993]
[1764855589691,0.89,142.61,142.6,7.01262272]
[1764855591119,0.89,142.61,142.59,14.77292929]
[1764855591915,0.89,142.61,142.6,4.12799993]
[1764855593730,0.89,142.61,142.6,11.14062265]
[1764855593934,0.2,142.61,142.6,11.14062265]
[1764855595014,0.89,142.61,142.6,11.14062265]
[1764855595513,0.2,142.61,142.6,11.14062265]
[1764855597821,0.2,142.61,142.6,11.82062265]
[1764855599630,0.2,142.61,142.6,11.14062265]
[1764855599931,0.2,142.61,142.6,11.82062265]
[1764855600314,0.89,142.61,142.6,11.14062265]
[1764855600516,0.2,142.61,142.6,11.82062265]
[1764855601630,0.2,142.61,142.6,11.14062265]
[1764855602016,0.89,142.61,142.6,11.14062265]
[1764855602218,0.2,142.61,142.6,11.14062265]
[1764855606737,0.2,142.61,142.6,11.82062265]
[1764855606937,0.2,142.61,142.6,20.63056757]
[1764855609228,0.2,142.61,142.6,36.93943157]
[1764855612747,0.9,142.61,142.59,11.14111311]
[1764855613126,0.7,142.6,142.59,11.14111311]
[1764855613327,0.9,142.61,142.59,11.14111311]
[1764855614018,0.9,142.61,142.6,4.12799993]
[1764855614422,0.9,142.61,142.58,11.14154185]
[1764855614621,0.7,142.6,142.58,11.14154185]
[1764855615320,0.7,142.6,142.57,11.88799993]
[1764855615516,0.7,142.6,142.57,18.90194929]
[1764855616850,7.71269241,142.6,142.57,18.90194929]
[1764855617148,4.82799993,142.59,142.56,16.308864]
[1764855617323,0.7,142.59,142.54,11.14329727]
[1764855617528,4.82799993,142.58,142.54,11.14329727]
[1764855617841,0.7,142.58,142.54,11.14329727]
[1764855618153,0.7,142.57,142.54,11.14329727]
[1764855618528,0.7,142.57,142.54,7.01529734]
[1764855619035,0.7,142.57,142.54,11.14329727]
[1764855619850,0.7,142.57,142.54,7.70529734]
[1764855620052,0.7,142.59,142.56,4.12799993]
[1764855620350,0.7,142.59,142.57,4.12799993]
[1764855620757,0.7,142.59,142.56,11.14215611]
[1764855622025,0.7,142.59,142.56,7.01415618]
[1764855622546,0.7,142.59,142.56,11.14215611]
[1764855623253,0.7,142.59,142.57,4.12799993]
[1764855623447,11.34034054,142.61,142.56,7.01415618]
[1764855623448,0.2,142.61,142.58,4.12799993]
[1764855623628,0.9,142.61,142.6,4.12799993]
[1764855623951,0.2,142.61,142.6,4.12799993]
[1764855624657,0.2,142.61,142.6,11.14062265]
[1764855625126,0.2,142.61,142.6,11.83062265]
[1764855625332,0.2,142.61,142.6,11.14062265]
[1764855627452,0.9,142.61,142.6,11.14062265]
[1764855627748,0.2,142.61,142.6,11.14062265]
[1764855634277,0.2,142.61,142.6,11.83062265]
[1764855638448,0.2,142.61,142.6,10.34518179]
[1764855643172,0.2,142.61,142.6,7.01262272]
[1764855643352,0.2,142.61,142.6,18.10518179]
[1764855647277,0.2,142.61,142.6,26.91512671]
[1764855647479,0.2,142.63,142.62,25.11880892]
[1764855647669,0.2,142.63,142.62,35.52136799]
[1764855647884,0.2,142.63,142.62,36.21136799]
[1764855649294,0.2,142.63,142.62,43.22300731]
[1764855652168,0.2,142.63,142.62,35.46300731]
[1764855652369,0.2,142.63,142.62,43.22300731]
[1764855652566,0.2,142.63,142.62,105.52300731]
[1764855660003,1e-08,142.63,142.62,105.52300731]
[1764855660699,1e-08,142.63,142.62,102.88044824]
[1764855660903,1e-08,142.63,142.62,105.52300731]
[1764855662604,0.2,142.65,142.62,105.52300731]
[1764855662605,0.2,142.67,142.66,16.308864]
[1764855662808,0.2,142.69,142.67,8.80994492]
[1764855663099,0.2,142.69,142.68,11.07255907]
[1764855664187,0.2,142.69,142.68,19.88250399]
[1764855664401,0.2,142.69,142.68,26.89119476]
[1764855666218,0.2,142.69,142.68,26.20119476]
[1764855666513,0.2,142.69,142.68,26.89119476]
[1764855667487,0.2,142.69,142.68,89.19119476]
[1764855671307,0.72,142.74,142.71,16.308864]
[1764855671607,0.72,142.74,142.73,13.21279535]
[1764855672209,0.2,142.76,142.73,13.21279535]
[1764855672210,0.92,142.76,142.73,13.21279535]
[1764855672409,0.92,142.76,142.75,11.45250399]
[1764855672410,0.2,142.76,142.75,11.45250399]
[1764855672894,0.88,142.76,142.74,16.308864]
[1764855673094,0.88,142.76,142.75,2.64255907]
[1764855673300,0.68,142.75,142.74,17.38830378]
[1764855673712,0.68,142.75,142.74,7.00574471]
[1764855674102,0.68,142.75,142.74,9.64830378]
[1764855675189,0.2,142.76,142.74,9.64830378]
[1764855675392,0.2,142.76,142.75,26.91775793]
[1764855676092,1e-08,142.76,142.75,26.91775793]
[1764855677425,0.2,142.79,142.78,16.308864]
[1764855677732,0.2,142.79,142.78,35.50136799]
[1764855677890,0.2,142.79,142.78,36.22136799]
[1764855679423,0.2,142.79,142.78,43.22515003]
[1764855680907,0.2,142.79,142.78,53.79538631]
[1764855681526,0.2,142.79,142.78,43.22515003]
[1764855682907,0.2,142.79,142.78,42.50515003]
[1764855685119,0.2,142.81,142.79,8.80994492]
[1764855685321,0.2,142.81,142.8,46.07160427]
[1764855685502,0.2,142.81,142.8,30.48274027]
[1764855685813,0.2,142.81,142.8,29.76274027]
[1764855686405,0.2,142.81,142.8,30.48274027]
[1764855687318,0.2,142.81,142.8,7.00280112]
[1764855687519,0.88,142.81,142.8,9.64536019]
[1764855687725,0.88,142.81,142.8,33.69422419]
[1764855688220,0.88,142.81,142.8,17.38536019]
[1764855688518,0.88,142.81,142.8,33.69422419]
[1764855689916,0.88,142.81,142.8,31.05166512]
[1764855690116,0.88,142.81,142.8,33.69422419]
[1764855691216,0.88,142.81,142.79,7.00307151]
[1764855691424,0.68,142.8,142.79,9.64563058]
[1764855692114,0.68,142.8,142.77,7.00420913]
[1764855692317,3.32255907,142.8,142.75,2.64255907]
[1764855692520,2.64255907,142.79,142.75,17.38752218]
[1764855692736,0.68,142.79,142.76,2.64255907]
[1764855692902,0.68,142.78,142.76,2.64255907]
[1764855693103,0.68,142.78,142.75,9.64752218]
[1764855693907,7.68379473,142.78,142.75,2.64255907]
[1764855694106,7.68379473,142.78,142.74,17.51383606]
[1764855694107,10.3263538,142.78,142.74,2.64255907]
[1764855694323,0.68,142.77,142.73,7.00612113]
[1764855694632,0.68,142.77,142.73,2.64255907]
[1764855694810,0.68,142.77,142.73,7.00621752]
[1764855695007,3.32255907,142.77,142.73,2.64255907]
[1764855695429,0.68,142.76,142.73,2.64255907]
[1764855695812,0.68,142.76,142.72,7.00655675]
[1764855696145,0.68,142.76,142.73,2.64255907]
[1764855697439,7.18478355,142.76,142.73,2.64255907]
[1764855697625,7.00478355,142.76,142.73,2.64255907]
[1764855698433,7.0042726,142.77,142.73,2.64255907]
[1764855699535,7.68486193,142.76,142.73,2.64255907]
[1764855700041,0.68,142.75,142.73,2.64255907]
[1764855700405,0.68,142.75,142.73,4.12301363]
[1764855701638,0.68,142.75,142.74,4.12301363]
[1764855701839,0.68,142.75,142.73,4.12301363]
[1764855702334,0.68,142.75,142.72,7.00655675]
[1764855702510,0.68,142.75,142.73,4.12301363]
[1764855704007,0.68,142.75,142.71,24.52460273]
[1764855704212,7.68528221,142.75,142.71,18.87023106]
[1764855704531,29.32143069,142.75,142.71,4.12301363]
[1764855704723,0.72,142.74,142.71,4.12301363]
[1764855706538,7.72581908,142.74,142.71,4.12301363]
[1764855706723,7.72581908,142.74,142.71,11.13017351]
[1764855706931,0.72,142.73,142.71,11.13017351]
[1764855707234,0.72,142.73,142.7,14.74753325]
[1764855707414,0.72,142.73,142.71,4.12301363]
[1764855708641,7.72624555,142.73,142.7,4.12301363]
[1764855708847,7.72624555,142.73,142.69,11.86301363]
[1764855709019,0.72,142.72,142.69,11.86301363]
[1764855709426,0.72,142.72,142.69,14.74796619]
[1764855709626,0.72,142.73,142.71,11.13023106]
[1764855709833,7.00539579,142.75,142.71,11.13023106]
[1764855710143,0.72,142.72,142.71,11.13023106]
[1764855711052,0.72,142.72,142.71,4.12301363]
[1764855711230,0.72,142.72,142.7,11.13049987]
[1764855712228,0.72,142.72,142.7,4.12301363]
[1764855713448,0.72,142.72,142.7,11.1307083]
[1764855714552,7.00592592,142.74,142.71,4.12301363]
[1764855714848,0.72,142.73,142.71,4.12301363]
[1764855716038,0.72,142.73,142.7,11.1307083]
[1764855716229,7.72640708,142.73,142.7,4.12301363]
[1764855716750,0.72,142.72,142.7,4.12301363]
[1764855720351,7.72684272,142.72,142.69,4.12301363]
[1764855720554,7.72684272,142.72,142.66,83.94653826]
[1764855720555,11.84985635,142.72,142.67,18.87209162]
[1764855720853,11.84985635,142.72,142.65,0.68]
[1764855720854,4.12301363,142.7,142.65,15.42985088]
[1764855721040,4.12301363,142.7,142.66,4.12301363]
[1764855721242,0.72,142.69,142.66,11.13256082]
[1764855721547,0.72,142.69,142.67,4.12301363]
[1764855722251,0.72,142.69,142.66,7.00954719]
[1764855722428,0.72,142.69,142.67,4.12301363]
[1764855723249,0.72,142.69,142.66,11.13256082]
[1764855724550,7.72822203,142.69,142.65,4.12301363]
[1764855724855,7.72822203,142.69,142.62,4.12301363]
[1764855724856,7.00967334,142.66,142.62,4.12301363]
[1764855725348,0.72,142.65,142.61,12.64301363]
[1764855725570,0.72,142.65,142.61,4.22301363]
[1764855725766,0.72,142.65,142.61,7.7921014]
[1764855726060,0.72,142.65,142.62,7.0116338]
[1764855726279,0.72,142.65,142.61,0.1]
[1764855726564,4.12301363,142.64,142.61,0.1]
[1764855726730,0.72,142.65,142.61,0.1]
[1764855726931,7.73091207,142.64,142.61,0.1]
[1764855727356,0.72,142.63,142.61,0.1]
[1764855727729,4.12301363,142.62,142.61,0.1]
[1764855728268,0.72,142.62,142.61,0.1]
[1764855729161,7.73163932,142.62,142.61,0.1]
[1764855730464,0.72,142.62,142.61,0.1]
[1764855732052,7.73163932,142.62,142.61,0.1]
[1764855732251,0.72,142.62,142.61,0.1]
[1764855733860,7.01134906,142.63,142.61,0.1]
[1764855734164,7.01065619,142.64,142.62,4.12301363]
[1764855734465,7.73065619,142.64,142.61,4.90301363]
[1764855734635,7.73065619,142.64,142.61,4.22301363]
[1764855734834,7.01065619,142.64,142.62,0.68]
[1764855735263,7.01065619,142.64,142.61,4.22301363]
[1764855735465,7.73065619,142.64,142.61,4.22301363]
[1764855735764,7.73065619,142.64,142.61,4.90301363]
[1764855735935,7.73065619,142.64,142.61,0.1]
[1764855737066,7.73065619,142.64,142.61,4.22301363]
[1764855737665,7.73065619,142.64,142.61,4.90301363]
[1764855738959,7.73065619,142.64,142.61,4.22301363]
[1764855739475,7.73065619,142.64,142.61,4.90301363]
[1764855739668,7.73065619,142.64,142.61,0.78]
[1764855740346,7.73065619,142.64,142.61,0.1]
[1764855742264,0.72,142.63,142.61,0.1]
[1764855744561,7.73135937,142.63,142.61,0.1]
[1764855744982,0.72,142.62,142.61,0.1]
[1764855745154,4.84301363,142.62,142.61,0.1]
[1764855745856,7.01135937,142.63,142.61,0.1]
[1764855746267,7.73135937,142.63,142.61,0.1]
[1764855746992,0.72,142.62,142.61,0.1]
[1764855747468,7.73135937,142.63,142.61,0.1]
[1764855752082,7.01135937,142.63,142.61,0.1]
[1764855752285,0.72,142.62,142.61,0.1]
[1764855752481,7.73135937,142.63,142.61,0.1]
[1764855752680,7.01135937,142.63,142.61,0.1]
[1764855752980,7.73135937,142.63,142.61,0.1]
[1764855753385,0.72,142.62,142.61,0.1]
[1764855753570,4.84301363,142.62,142.61,0.1]
[1764855754286,11.85465295,142.62,142.61,0.1]
[1764855759777,20.66459787,142.62,142.61,0.1]
[1764855760375,19.18710111,142.62,142.61,0.1]
[1764855761995,16.308864,142.59,142.56,0.1]
[1764855762301,2.64551687,142.57,142.56,0.1]
[1764855762882,3.33551687,142.57,142.56,0.1]
[1764855763088,0.69,142.57,142.56,0.1]
[1764855763496,3.33551687,142.57,142.56,0.1]